[Event "*** Titled Tuesday Blitz"]
[Site "Chess.com"]
[Date "2020.04.28"]
[Round "2"]
[White "cottage_cheese"]
[Black "WinningButNotReally"]
[Result "0-1"]
[WhiteElo "2166"]
[BlackElo "2423"]
[TimeControl "180+1"]
[EndTime "10:18:24 PDT"]
[Termination "WinningButNotReally won by resignation"]

1. e4 {[%clk 0:03:00]} 1... c6 {[%clk 0:02:57.4]} 2. d4 {[%clk 0:02:59.7]} 2...
d5 {[%clk 0:02:57.6]} 3. Nd2 {[%clk 0:03:00]} 3... dxe4 {[%clk 0:02:57.8]} 4.
Nxe4 {[%clk 0:03:00.9]} 4... Bf5 {[%clk 0:02:58.4]} 5. Ng3 {[%clk 0:03:01.3]}
5... Bg6 {[%clk 0:02:59]} 6. Nh3 {[%clk 0:03:01.9]} 6... e6 {[%clk 0:02:58.9]}
7. Nf4 {[%clk 0:03:01.7]} 7... Bd6 {[%clk 0:02:59.1]} 8. h4 {[%clk 0:02:55.8]}
8... Qc7 {[%clk 0:02:58.8]} 9. Nfh5 {[%clk 0:02:48.6]} 9... Bxh5 {[%clk
0:02:48.6]} 10. Nxh5 {[%clk 0:02:36.3]} 10... g6 {[%clk 0:02:48.5]} 11. Qg4
{[%clk 0:02:25]} 11... f5 {[%clk 0:02:38.5]} 12. Qf3 {[%clk 0:02:08.6]} 12...
gxh5 {[%clk 0:02:36.6]} 13. Qxh5+ {[%clk 0:02:08.8]} 13... Qf7 {[%clk
0:02:36.4]} 14. Qf3 {[%clk 0:02:08.8]} 14... Nf6 {[%clk 0:02:34.1]} 15. Bc4
{[%clk 0:02:08.5]} 15... Nbd7 {[%clk 0:02:21.9]} 16. Bg5 {[%clk 0:02:07.8]}
16... O-O-O {[%clk 0:02:19]} 17. Qxf5 {[%clk 0:02:07.8]} 17... exf5 {[%clk
0:02:14.1]} 18. Bxf7 {[%clk 0:02:07.8]} 18... Rdf8 {[%clk 0:02:13.7]} 19. Bc4
{[%clk 0:02:05.5]} 19... Re8+ {[%clk 0:02:13.2]} 20. Kf1 {[%clk 0:02:02.2]}
20... Ne4 {[%clk 0:02:10.7]} 21. Bh6 {[%clk 0:01:57.3]} 21... f4 {[%clk
0:01:55.3]} 22. Rd1 {[%clk 0:01:53.2]} 22... Re7 {[%clk 0:01:18.2]} 23. Rh3
{[%clk 0:01:45.2]} 23... Rhe8 {[%clk 0:01:17.8]} 24. Kg1 {[%clk 0:01:40.3]}
24... Ndf6 {[%clk 0:01:13.9]} 25. Rf3 {[%clk 0:01:06.7]} 25... b5 {[%clk
0:00:44]} 26. Bd3 {[%clk 0:01:04.1]} 26... Nd5 {[%clk 0:00:36.7]} 27. c3 {[%clk
0:00:56.9]} 27... Re6 {[%clk 0:00:31.4]} 28. Bg5 {[%clk 0:00:37.7]} 28... Kd7
{[%clk 0:00:17.5]} 29. a4 {[%clk 0:00:31.6]} 29... a6 {[%clk 0:00:17.1]} 30.
axb5 {[%clk 0:00:31.7]} 30... axb5 {[%clk 0:00:17.3]} 31. c4 {[%clk 0:00:31.3]}
31... bxc4 {[%clk 0:00:17.3]} 32. Bxc4 {[%clk 0:00:31.6]} 32... h6 {[%clk
0:00:17.5]} 33. Bxd5 {[%clk 0:00:30.9]} 33... cxd5 {[%clk 0:00:18.4]} 34. Bxh6
{[%clk 0:00:30.1]} 34... Rxh6 {[%clk 0:00:18.4]} 35. Ra1 {[%clk 0:00:29.1]}
35... Rxh4 {[%clk 0:00:18.3]} 36. Ra7+ {[%clk 0:00:28.9]} 36... Ke6 {[%clk
0:00:18.6]} 37. Rb7 {[%clk 0:00:26.8]} 37... Rg4 {[%clk 0:00:18.5]} 38. b4
{[%clk 0:00:26]} 38... Reg8 {[%clk 0:00:18.2]} 39. Kf1 {[%clk 0:00:25.7]} 39...
Nd2+ {[%clk 0:00:18.1]} 40. Ke2 {[%clk 0:00:25.5]} 40... Nxf3 {[%clk 0:00:19]}
41. Kxf3 {[%clk 0:00:26.4]} 41... Rxg2 {[%clk 0:00:18.8]} 42. Rh7 {[%clk
0:00:25.4]} 42... R2g7 {[%clk 0:00:18.5]} 43. Rh6+ {[%clk 0:00:25.7]} 43... Rg6
{[%clk 0:00:18.9]} 44. Rh5 {[%clk 0:00:26.3]} 44... Rb8 {[%clk 0:00:19.1]} 45.
Rh7 {[%clk 0:00:24.6]} 45... Rxb4 {[%clk 0:00:19.1]} 46. Ra7 {[%clk 0:00:24.5]}
46... Rb3+ {[%clk 0:00:19.2]} 47. Ke2 {[%clk 0:00:24.6]} 47... f3+ {[%clk
0:00:19.6]} 48. Kd2 {[%clk 0:00:24.4]} 48... Bb4+ {[%clk 0:00:17.6]} 49. Kc2
{[%clk 0:00:24.4]} 49... Rc3+ {[%clk 0:00:18]} 50. Kb2 {[%clk 0:00:23.9]} 50...
Rg2 {[%clk 0:00:18.1]} 0-1

[Event "*** Titled Tuesday Blitz"]
[Site "Chess.com"]
[Date "2020.04.28"]
[Round "2"]
[White "ParvizGasimov"]
[Black "WoolworthsManly"]
[Result "0-1"]
[WhiteElo "2356"]
[BlackElo "2657"]
[TimeControl "180+1"]
[EndTime "10:18:25 PDT"]
[Termination "WoolworthsManly won by resignation"]

1. e4 {[%clk 0:02:59.1]} 1... e5 {[%clk 0:02:59.9]} 2. Bc4 {[%clk 0:02:56.5]}
2... Nc6 {[%clk 0:02:59.7]} 3. Nf3 {[%clk 0:02:55.6]} 3... Bc5 {[%clk
0:02:59.4]} 4. d3 {[%clk 0:02:55.8]} 4... Nf6 {[%clk 0:02:59.1]} 5. c3 {[%clk
0:02:56.2]} 5... d6 {[%clk 0:02:59]} 6. O-O {[%clk 0:02:56.5]} 6... a6 {[%clk
0:02:59.5]} 7. a4 {[%clk 0:02:56.2]} 7... Ba7 {[%clk 0:02:59.7]} 8. Nbd2 {[%clk
0:02:53.1]} 8... O-O {[%clk 0:02:57.8]} 9. Re1 {[%clk 0:02:52.6]} 9... Ng4
{[%clk 0:02:57.2]} 10. Re2 {[%clk 0:02:47.6]} 10... Kh8 {[%clk 0:02:57]} 11. h3
{[%clk 0:02:47.9]} 11... Nh6 {[%clk 0:02:57]} 12. Nf1 {[%clk 0:02:43.4]} 12...
f5 {[%clk 0:02:57.3]} 13. exf5 {[%clk 0:02:24.4]} 13... Nxf5 {[%clk 0:02:47.6]}
14. Ne3 {[%clk 0:02:23.5]} 14... Nxe3 {[%clk 0:02:42.7]} 15. Bxe3 {[%clk
0:02:24.4]} 15... Bxh3 {[%clk 0:02:37.7]} 16. Ng5 {[%clk 0:02:00.4]} 16... Bg4
{[%clk 0:02:31.2]} 17. Nf7+ {[%clk 0:01:43.3]} 17... Rxf7 {[%clk 0:02:29.9]} 18.
Bxf7 {[%clk 0:01:44.2]} 18... Bxe3 {[%clk 0:02:24.4]} 19. fxe3 {[%clk
0:01:45.1]} 19... Qg5 {[%clk 0:02:13.6]} 20. Qd2 {[%clk 0:01:36.5]} 20... Bxe2
{[%clk 0:02:13.6]} 21. Qxe2 {[%clk 0:01:36.5]} 21... Rf8 {[%clk 0:02:14.2]} 22.
Rf1 {[%clk 0:01:36]} 22... Nd8 {[%clk 0:02:07.3]} 23. Bc4 {[%clk 0:01:28.1]}
23... Rxf1+ {[%clk 0:02:06.6]} 24. Kxf1 {[%clk 0:01:29]} 24... c6 {[%clk
0:02:03.7]} 25. e4 {[%clk 0:01:21]} 25... h5 {[%clk 0:01:59.7]} 26. a5 {[%clk
0:01:11.8]} 26... g6 {[%clk 0:01:56.3]} 27. Kg1 {[%clk 0:01:04.9]} 27... Kg7
{[%clk 0:01:55]} 28. Qf2 {[%clk 0:01:02.8]} 28... Qc1+ {[%clk 0:01:50]} 29. Kh2
{[%clk 0:01:00.6]} 29... Qf4+ {[%clk 0:01:50]} 30. Kg1 {[%clk 0:00:57.2]} 30...
Qxf2+ {[%clk 0:01:48.9]} 31. Kxf2 {[%clk 0:00:58.1]} 31... Kf6 {[%clk
0:01:47.8]} 32. Kf3 {[%clk 0:00:52.5]} 32... Ne6 {[%clk 0:01:47.6]} 33. b4
{[%clk 0:00:47.5]} 33... Nf4 {[%clk 0:01:43.8]} 34. g3 {[%clk 0:00:46]} 34...
Ne6 {[%clk 0:01:43.9]} 35. Bb3 {[%clk 0:00:42.3]} 35... Nc7 {[%clk 0:01:39.6]}
36. Ke3 {[%clk 0:00:31.8]} 36... Nb5 {[%clk 0:01:33.6]} 37. Kd2 {[%clk
0:00:31.2]} 37... Nc7 {[%clk 0:01:14.1]} 38. Ke3 {[%clk 0:00:30.4]} 38... Kg5
{[%clk 0:01:12.4]} 39. Bf7 {[%clk 0:00:28.8]} 39... Nb5 {[%clk 0:01:05.3]} 40.
c4 {[%clk 0:00:22.3]} 40... Nd4 {[%clk 0:01:04.6]} 41. Be8 {[%clk 0:00:22.5]}
41... Nc2+ {[%clk 0:01:02.7]} 42. Kd2 {[%clk 0:00:22]} 42... Nxb4 {[%clk
0:01:02.8]} 43. Bd7 {[%clk 0:00:15.7]} 43... h4 {[%clk 0:01:00.4]} 44. gxh4+
{[%clk 0:00:15]} 44... Kxh4 {[%clk 0:01:01.3]} 45. Bc8 {[%clk 0:00:15.5]} 45...
c5 {[%clk 0:01:00.9]} 46. Bxb7 {[%clk 0:00:14.8]} 46... Kg3 {[%clk 0:00:59.2]}
47. Kc3 {[%clk 0:00:04.5]} 47... g5 {[%clk 0:00:56.5]} 48. Kb3 {[%clk
0:00:03.9]} 48... Kf3 {[%clk 0:00:54.9]} 49. Bxa6 {[%clk 0:00:03.4]} 49... Nxa6
{[%clk 0:00:54.2]} 50. Ka4 {[%clk 0:00:03.7]} 50... g4 {[%clk 0:00:54.8]} 51.
Kb5 {[%clk 0:00:04.1]} 51... Nb4 {[%clk 0:00:55.4]} 52. a6 {[%clk 0:00:03.6]}
52... Nxa6 {[%clk 0:00:55.7]} 53. Kxa6 {[%clk 0:00:04.5]} 53... g3 {[%clk
0:00:56.6]} 54. Kb6 {[%clk 0:00:05.1]} 54... Ke3 {[%clk 0:00:56.4]} 55. Kc6
{[%clk 0:00:06]} 55... Kd4 {[%clk 0:00:56.4]} 56. Kd7 {[%clk 0:00:04.1]} 56...
g2 {[%clk 0:00:57.3]} 57. Ke6 {[%clk 0:00:05]} 57... g1=Q {[%clk 0:00:57.1]} 58.
Kf5 {[%clk 0:00:05.4]} 58... Qf1+ {[%clk 0:00:47.4]} 0-1

[Event "*** Titled Tuesday Blitz"]
[Site "Chess.com"]
[Date "2020.04.28"]
[Round "2"]
[White "erlesfar"]
[Black "1977Ivan"]
[Result "1-0"]
[WhiteElo "2351"]
[BlackElo "2633"]
[TimeControl "180+1"]
[EndTime "10:18:25 PDT"]
[Termination "erlesfar won by resignation"]

1. e4 {[%clk 0:02:57.4]} 1... c5 {[%clk 0:02:59.8]} 2. c3 {[%clk 0:02:51.5]}
2... d5 {[%clk 0:02:54.9]} 3. exd5 {[%clk 0:02:44.8]} 3... Nf6 {[%clk
0:02:54.7]} 4. d4 {[%clk 0:02:39.9]} 4... cxd4 {[%clk 0:02:54.2]} 5. cxd4 {[%clk
0:02:37.4]} 5... g6 {[%clk 0:02:51.1]} 6. Nc3 {[%clk 0:02:36.5]} 6... Nxd5
{[%clk 0:02:46.2]} 7. Bc4 {[%clk 0:02:35]} 7... Nb6 {[%clk 0:02:45.4]} 8. Bb3
{[%clk 0:02:34.1]} 8... Bg7 {[%clk 0:02:45]} 9. Nf3 {[%clk 0:02:31.3]} 9... Nc6
{[%clk 0:02:44.7]} 10. d5 {[%clk 0:02:28.9]} 10... Na5 {[%clk 0:02:44.6]} 11.
O-O {[%clk 0:02:24.4]} 11... O-O {[%clk 0:02:44.1]} 12. Bg5 {[%clk 0:02:22.9]}
12... h6 {[%clk 0:02:43.2]} 13. Bh4 {[%clk 0:02:22.2]} 13... Bg4 {[%clk
0:02:36.7]} 14. Re1 {[%clk 0:02:20.3]} 14... g5 {[%clk 0:02:35.6]} 15. Bg3
{[%clk 0:02:17.1]} 15... Nac4 {[%clk 0:02:28.7]} 16. Bxc4 {[%clk 0:02:12.7]}
16... Nxc4 {[%clk 0:02:28.6]} 17. Qb3 {[%clk 0:02:12.3]} 17... Rc8 {[%clk
0:02:27.5]} 18. Ne5 {[%clk 0:02:07.2]} 18... Bxe5 {[%clk 0:01:44.1]} 19. Bxe5
{[%clk 0:02:05.9]} 19... Qb6 {[%clk 0:01:44.4]} 20. h3 {[%clk 0:01:59.5]} 20...
Bh5 {[%clk 0:01:43.5]} 21. Re4 {[%clk 0:01:46.6]} 21... Nd2 {[%clk 0:01:33]} 22.
Qxb6 {[%clk 0:01:44.7]} 22... axb6 {[%clk 0:01:33.2]} 23. Rb4 {[%clk 0:01:44.6]}
23... Nc4 {[%clk 0:01:28.9]} 24. Bd4 {[%clk 0:01:41]} 24... Rfe8 {[%clk
0:01:14.7]} 25. Re1 {[%clk 0:01:34.5]} 25... Bg6 {[%clk 0:01:08.8]} 26. Bxb6
{[%clk 0:01:32.5]} 26... Nxb2 {[%clk 0:01:06.4]} 27. Rxb2 {[%clk 0:01:31.7]}
27... Rxc3 {[%clk 0:01:05.8]} 28. Be3 {[%clk 0:01:29.1]} 28... Rd3 {[%clk
0:00:55]} 29. Rxb7 {[%clk 0:01:21.2]} 29... Rxd5 {[%clk 0:00:55]} 30. Rc1 {[%clk
0:01:13.5]} 30... e5 {[%clk 0:00:52.9]} 31. h4 {[%clk 0:01:09.8]} 31... gxh4
{[%clk 0:00:49.9]} 32. Bxh6 {[%clk 0:01:08.5]} 32... Ra8 {[%clk 0:00:50.3]} 33.
Bg5 {[%clk 0:00:55.8]} 33... h3 {[%clk 0:00:38.9]} 34. gxh3 {[%clk 0:00:53.1]}
34... Rxa2 {[%clk 0:00:35.8]} 35. Bf6 {[%clk 0:00:51.1]} 35... Ra8 {[%clk
0:00:33.4]} 36. Rbc7 {[%clk 0:00:49.5]} 36... Kh7 {[%clk 0:00:31.4]} 37. Rc8
{[%clk 0:00:43.8]} 37... Rxc8 {[%clk 0:00:30.9]} 38. Rxc8 {[%clk 0:00:43]} 38...
Be4 {[%clk 0:00:30.3]} 39. Re8 {[%clk 0:00:40.4]} 39... Kg6 {[%clk 0:00:27.5]}
40. Bxe5 {[%clk 0:00:37.8]} 40... Rd1+ {[%clk 0:00:26.5]} 41. Kh2 {[%clk
0:00:36.8]} 41... Kf5 {[%clk 0:00:21.5]} 42. Bb8 {[%clk 0:00:32.6]} 42... Rh1+
{[%clk 0:00:20.2]} 43. Kg3 {[%clk 0:00:31.3]} 43... Rg1+ {[%clk 0:00:20.7]} 44.
Kh4 {[%clk 0:00:30.8]} 44... Rg7 {[%clk 0:00:17.9]} 45. Re5+ {[%clk 0:00:26.6]}
45... Kg6 {[%clk 0:00:05.9]} 46. Rxe4 {[%clk 0:00:26.1]} 46... Rh7+ {[%clk
0:00:06.3]} 47. Kg3 {[%clk 0:00:25.9]} 47... f5 {[%clk 0:00:05.9]} 48. Re6+
{[%clk 0:00:24.7]} 48... Kf7 {[%clk 0:00:04.7]} 49. Rb6 {[%clk 0:00:24.2]} 1-0

[Event "*** Titled Tuesday Blitz"]
[Site "Chess.com"]
[Date "2020.04.28"]
[Round "2"]
[White "Xeslu"]
[Black "Pultis"]
[Result "1/2-1/2"]
[WhiteElo "2345"]
[BlackElo "2751"]
[TimeControl "180+1"]
[EndTime "10:18:25 PDT"]
[Termination "Game drawn by repetition"]

1. e4 {[%clk 0:02:54.1]} 1... c6 {[%clk 0:02:59.8]} 2. d4 {[%clk 0:02:52.8]}
2... d5 {[%clk 0:03:00.7]} 3. e5 {[%clk 0:02:53.2]} 3... Bf5 {[%clk 0:03:01.3]}
4. Nf3 {[%clk 0:02:53.4]} 4... e6 {[%clk 0:03:01.8]} 5. Nbd2 {[%clk 0:02:53.6]}
5... Ne7 {[%clk 0:03:02.4]} 6. Nb3 {[%clk 0:02:53.5]} 6... Nd7 {[%clk 0:03:03]}
7. Bd2 {[%clk 0:02:52.7]} 7... c5 {[%clk 0:03:00.8]} 8. dxc5 {[%clk 0:02:46]}
8... Nc6 {[%clk 0:03:00.5]} 9. Bb5 {[%clk 0:02:44.3]} 9... Bg4 {[%clk
0:02:52.7]} 10. O-O {[%clk 0:02:29.7]} 10... Nxc5 {[%clk 0:02:41.8]} 11. Nbd4
{[%clk 0:02:26.2]} 11... Rc8 {[%clk 0:02:39.4]} 12. Re1 {[%clk 0:02:25.2]} 12...
a6 {[%clk 0:02:36.9]} 13. Bxc6+ {[%clk 0:02:24.5]} 13... bxc6 {[%clk 0:02:37.8]}
14. h3 {[%clk 0:02:13]} 14... Bh5 {[%clk 0:02:37.4]} 15. Bb4 {[%clk 0:01:59.7]}
15... Nd3 {[%clk 0:02:33.4]} 16. Qxd3 {[%clk 0:01:57]} 16... Bxb4 {[%clk
0:02:32.9]} 17. c3 {[%clk 0:01:50]} 17... Be7 {[%clk 0:02:33.1]} 18. Qxa6 {[%clk
0:01:49.8]} 18... Qd7 {[%clk 0:02:33]} 19. b4 {[%clk 0:01:43.7]} 19... O-O
{[%clk 0:02:32.2]} 20. a4 {[%clk 0:01:43.4]} 20... c5 {[%clk 0:02:31.2]} 21.
bxc5 {[%clk 0:01:40.9]} 21... Rxc5 {[%clk 0:02:32.1]} 22. Rec1 {[%clk
0:01:34.1]} 22... Rfc8 {[%clk 0:02:31.6]} 23. Qd3 {[%clk 0:01:29.2]} 23... Bd8
{[%clk 0:02:23.7]} 24. Nb5 {[%clk 0:01:24.4]} 24... Bb6 {[%clk 0:02:16.6]} 25.
Nd6 {[%clk 0:01:11.4]} 25... Ra8 {[%clk 0:02:13.8]} 26. Rcb1 {[%clk 0:01:01.3]}
26... Bc7 {[%clk 0:02:13.7]} 27. Nb5 {[%clk 0:00:57.2]} 27... Bxf3 {[%clk
0:02:11.6]} 28. Nxc7 {[%clk 0:00:27.4]} 28... Be4 {[%clk 0:02:10.1]} 29. Nxa8
{[%clk 0:00:26]} 29... Bxd3 {[%clk 0:02:02.2]} 30. Rb8+ {[%clk 0:00:23.7]} 30...
Rc8 {[%clk 0:02:02.8]} 31. Nb6 {[%clk 0:00:23.1]} 31... Rxb8 {[%clk 0:02:03.4]}
32. Nxd7 {[%clk 0:00:22.9]} 32... Rc8 {[%clk 0:02:03]} 33. a5 {[%clk 0:00:20.1]}
33... Ba6 {[%clk 0:02:02.8]} 34. Rb1 {[%clk 0:00:14.7]} 34... Rxc3 {[%clk
0:01:49]} 35. Rb6 {[%clk 0:00:13.7]} 35... Rc1+ {[%clk 0:01:49.4]} 36. Kh2
{[%clk 0:00:13]} 36... Bc8 {[%clk 0:01:50.3]} 37. Rb8 {[%clk 0:00:11.7]} 37...
h5 {[%clk 0:01:49.7]} 38. Nb6 {[%clk 0:00:11.5]} 38... Kh7 {[%clk 0:01:48.8]}
39. Rxc8 {[%clk 0:00:11.5]} 39... Ra1 {[%clk 0:01:49.7]} 40. Rc5 {[%clk
0:00:11.4]} 40... d4 {[%clk 0:01:50.6]} 41. Nc4 {[%clk 0:00:11.1]} 41... d3
{[%clk 0:01:50.1]} 42. Ne3 {[%clk 0:00:10.5]} 42... Ra2 {[%clk 0:01:50.7]} 43.
Rc7 {[%clk 0:00:09.5]} 43... Kg6 {[%clk 0:01:45.6]} 44. Kg3 {[%clk 0:00:07.1]}
44... Rxa5 {[%clk 0:01:45.3]} 45. Rd7 {[%clk 0:00:07.1]} 45... Ra3 {[%clk
0:01:41.5]} 46. Kf3 {[%clk 0:00:06]} 46... f5 {[%clk 0:01:10.3]} 47. exf6 {[%clk
0:00:05.1]} 47... gxf6 {[%clk 0:01:11.2]} 48. g4 {[%clk 0:00:05.6]} 48... Ra2
{[%clk 0:01:12.1]} 49. gxh5+ {[%clk 0:00:05.5]} 49... Kxh5 {[%clk 0:01:13]} 50.
Re7 {[%clk 0:00:05.6]} 50... Kg6 {[%clk 0:01:13.7]} 51. Rxe6 {[%clk 0:00:05.6]}
51... Ra5 {[%clk 0:01:14]} 52. Rd6 {[%clk 0:00:05.7]} 52... Ra3 {[%clk
0:01:14.3]} 53. Kg3 {[%clk 0:00:05.7]} 53... Ra2 {[%clk 0:01:15.2]} 54. h4
{[%clk 0:00:06.5]} 54... Ra3 {[%clk 0:01:15.5]} 55. Rd4 {[%clk 0:00:05.9]} 55...
f5 {[%clk 0:01:15.4]} 56. Kf4 {[%clk 0:00:05.7]} 56... Kh5 {[%clk 0:01:12.7]}
57. Nxf5 {[%clk 0:00:05.2]} 57... Ra6 {[%clk 0:01:09.3]} 58. Kf3 {[%clk
0:00:04.5]} 58... Rf6 {[%clk 0:01:08.9]} 59. Kf4 {[%clk 0:00:04.2]} 59... Ra6
{[%clk 0:01:06.7]} 60. Ng3+ {[%clk 0:00:03.5]} 60... Kxh4 {[%clk 0:01:06]} 61.
Ke3+ {[%clk 0:00:03.8]} 61... Kh3 {[%clk 0:01:06.3]} 62. Rxd3 {[%clk 0:00:04]}
62... Ra2 {[%clk 0:01:06.6]} 63. Ne4 {[%clk 0:00:04.2]} 63... Kg4 {[%clk
0:01:06.6]} 64. f3+ {[%clk 0:00:04.5]} 64... Kf5 {[%clk 0:01:06.1]} 65. Rd5+
{[%clk 0:00:04.1]} 65... Ke6 {[%clk 0:01:06.4]} 66. Rc5 {[%clk 0:00:03.9]} 66...
Ra8 {[%clk 0:01:05]} 67. Kf4 {[%clk 0:00:04.2]} 67... Rf8+ {[%clk 0:01:05.9]}
68. Ke3 {[%clk 0:00:04.3]} 68... Ra8 {[%clk 0:01:06.8]} 69. Rc6+ {[%clk
0:00:04.5]} 69... Kd5 {[%clk 0:01:06.8]} 70. Rc5+ {[%clk 0:00:04.8]} 70... Ke6
{[%clk 0:01:07.2]} 1/2-1/2

[Event "*** Titled Tuesday Blitz"]
[Site "Chess.com"]
[Date "2020.04.28"]
[Round "2"]
[White "svilson23"]
[Black "GianmarcoVaR"]
[Result "0-1"]
[WhiteElo "2215"]
[BlackElo "2560"]
[TimeControl "180+1"]
[EndTime "10:18:26 PDT"]
[Termination "GianmarcoVaR won on time"]

1. d4 {[%clk 0:03:00.9]} 1... Nf6 {[%clk 0:02:59.6]} 2. Bg5 {[%clk 0:03:00.9]}
2... Ne4 {[%clk 0:02:58.6]} 3. Bf4 {[%clk 0:03:00.7]} 3... d5 {[%clk 0:02:58.9]}
4. e3 {[%clk 0:03:00.3]} 4... c5 {[%clk 0:02:55.8]} 5. Bd3 {[%clk 0:02:48.2]}
5... Nf6 {[%clk 0:02:55.6]} 6. c3 {[%clk 0:02:46.7]} 6... Nc6 {[%clk 0:02:49.7]}
7. Nf3 {[%clk 0:02:45.5]} 7... Bg4 {[%clk 0:02:49.7]} 8. h3 {[%clk 0:02:42.4]}
8... Bh5 {[%clk 0:02:48.7]} 9. O-O {[%clk 0:02:40.6]} 9... e6 {[%clk 0:02:46.3]}
10. g4 {[%clk 0:02:31.3]} 10... Bg6 {[%clk 0:02:45.8]} 11. Ne5 {[%clk
0:02:28.6]} 11... Nxe5 {[%clk 0:02:36.1]} 12. Bxe5 {[%clk 0:02:26.5]} 12... Nd7
{[%clk 0:02:31.7]} 13. Bg3 {[%clk 0:02:23.5]} 13... Bxd3 {[%clk 0:02:28.2]} 14.
Qxd3 {[%clk 0:02:22.9]} 14... h5 {[%clk 0:02:27.8]} 15. Nd2 {[%clk 0:02:10.2]}
15... hxg4 {[%clk 0:02:10.8]} 16. hxg4 {[%clk 0:02:10.2]} 16... Qg5 {[%clk
0:02:02.1]} 17. Qe2 {[%clk 0:02:07]} 17... Nf6 {[%clk 0:01:15.2]} 18. f3 {[%clk
0:01:57.6]} 18... a6 {[%clk 0:00:58.5]} 19. Rae1 {[%clk 0:01:43.7]} 19... cxd4
{[%clk 0:00:38.1]} 20. exd4 {[%clk 0:01:41.6]} 20... O-O-O {[%clk 0:00:35.6]}
21. Qe5 {[%clk 0:01:27.2]} 21... Qxe5 {[%clk 0:00:34.8]} 22. dxe5 {[%clk
0:01:06.7]} 22... Ng8 {[%clk 0:00:29.5]} 23. Nb3 {[%clk 0:01:04]} 23... Ne7
{[%clk 0:00:29]} 24. Kg2 {[%clk 0:01:02]} 24... Nc6 {[%clk 0:00:28.3]} 25. Bf2
{[%clk 0:00:53.5]} 25... Be7 {[%clk 0:00:22.9]} 26. f4 {[%clk 0:00:51.5]} 26...
Bh4 {[%clk 0:00:21.5]} 27. Rh1 {[%clk 0:00:40.5]} 27... Bxf2 {[%clk 0:00:21.4]}
28. Kxf2 {[%clk 0:00:41.1]} 28... g5 {[%clk 0:00:20.1]} 29. Rxh8 {[%clk
0:00:27.2]} 29... Rxh8 {[%clk 0:00:20.5]} 30. f5 {[%clk 0:00:27.3]} 30... Rh2+
{[%clk 0:00:19.3]} 31. Kg3 {[%clk 0:00:24.6]} 31... Rxb2 {[%clk 0:00:17.8]} 32.
fxe6 {[%clk 0:00:25.2]} 32... fxe6 {[%clk 0:00:17.4]} 33. Nc5 {[%clk 0:00:25.8]}
33... Nd8 {[%clk 0:00:06.5]} 34. Rf1 {[%clk 0:00:18.8]} 34... Rc2 {[%clk
0:00:06.3]} 35. Rf3 {[%clk 0:00:18.7]} 35... Kc7 {[%clk 0:00:03.6]} 36. Rf7+
{[%clk 0:00:08.2]} 36... Kb6 {[%clk 0:00:03.4]} 37. Nd7+ {[%clk 0:00:02.4]}
37... Kb5 {[%clk 0:00:03.5]} 38. Rf8 {[%clk 0:00:01.5]} 38... Rxc3+ {[%clk
0:00:03.9]} 0-1

[Event "*** Titled Tuesday Blitz"]
[Site "Chess.com"]
[Date "2020.04.28"]
[Round "2"]
[White "AustrianFalcon"]
[Black "David_Paravyan"]
[Result "0-1"]
[WhiteElo "2579"]
[BlackElo "2956"]
[TimeControl "180+1"]
[EndTime "10:18:27 PDT"]
[Termination "David_Paravyan won by checkmate"]

1. e4 {[%clk 0:03:00.9]} 1... c5 {[%clk 0:02:59.4]} 2. Nf3 {[%clk 0:02:59.7]}
2... Nc6 {[%clk 0:02:58.8]} 3. Bb5 {[%clk 0:02:59.3]} 3... g6 {[%clk 0:02:57.8]}
4. O-O {[%clk 0:02:56]} 4... Bg7 {[%clk 0:02:57.3]} 5. Re1 {[%clk 0:02:56.5]}
5... e5 {[%clk 0:02:55.8]} 6. b4 {[%clk 0:02:56]} 6... Nxb4 {[%clk 0:02:33.6]}
7. Bb2 {[%clk 0:02:55.5]} 7... a6 {[%clk 0:02:33.5]} 8. a3 {[%clk 0:02:55.3]}
8... axb5 {[%clk 0:02:18.9]} 9. axb4 {[%clk 0:02:55]} 9... Rxa1 {[%clk
0:02:19.5]} 10. Bxa1 {[%clk 0:02:55.9]} 10... d6 {[%clk 0:02:17.1]} 11. bxc5
{[%clk 0:02:56.2]} 11... Ne7 {[%clk 0:02:15.9]} 12. Qe2 {[%clk 0:02:56.3]} 12...
b4 {[%clk 0:02:00.2]} 13. Qc4 {[%clk 0:02:37]} 13... Nc6 {[%clk 0:01:52.6]} 14.
d4 {[%clk 0:02:28.2]} 14... exd4 {[%clk 0:00:53.5]} 15. Nxd4 {[%clk 0:02:21.6]}
15... Bxd4 {[%clk 0:00:36.7]} 16. Bxd4 {[%clk 0:02:19.1]} 16... Be6 {[%clk
0:00:36.4]} 17. Qb5 {[%clk 0:02:19.4]} 17... O-O {[%clk 0:00:36.2]} 18. Be3
{[%clk 0:02:17.6]} 18... dxc5 {[%clk 0:00:33]} 19. Bxc5 {[%clk 0:02:17.1]} 19...
Qg5 {[%clk 0:00:26.4]} 20. f4 {[%clk 0:01:19.8]} 20... Qxf4 {[%clk 0:00:26.3]}
21. Bxf8 {[%clk 0:01:18.3]} 21... Kxf8 {[%clk 0:00:27.2]} 22. Qc5+ {[%clk
0:01:17]} 22... Ke8 {[%clk 0:00:15.4]} 23. Qe3 {[%clk 0:01:12.8]} 23... Qxe3+
{[%clk 0:00:08.6]} 24. Rxe3 {[%clk 0:01:13.7]} 24... Nd4 {[%clk 0:00:09.4]} 25.
c3 {[%clk 0:01:07.6]} 25... Nc2 {[%clk 0:00:09.9]} 26. Re2 {[%clk 0:01:01.2]}
26... Na3 {[%clk 0:00:10.2]} 27. Nxa3 {[%clk 0:00:43.2]} 27... bxa3 {[%clk
0:00:11.1]} 28. Kf2 {[%clk 0:00:43.1]} 28... Kd7 {[%clk 0:00:07.3]} 29. Ke3
{[%clk 0:00:43.3]} 29... Kc6 {[%clk 0:00:05]} 30. Kd4 {[%clk 0:00:43.6]} 30...
Kb5 {[%clk 0:00:04.6]} 31. Re1 {[%clk 0:00:38.4]} 31... a2 {[%clk 0:00:04.8]}
32. Kd3 {[%clk 0:00:27]} 32... Ka4 {[%clk 0:00:04.9]} 33. Kc2 {[%clk 0:00:24.9]}
33... Ka3 {[%clk 0:00:05.3]} 34. Ra1 {[%clk 0:00:19.3]} 34... Bb3+ {[%clk
0:00:05.8]} 35. Kc1 {[%clk 0:00:19]} 35... f6 {[%clk 0:00:06.2]} 36. g3 {[%clk
0:00:18.8]} 36... b5 {[%clk 0:00:06.1]} 37. h4 {[%clk 0:00:19]} 37... h5 {[%clk
0:00:06.2]} 38. Kd2 {[%clk 0:00:10.9]} 38... Kb2 {[%clk 0:00:06.1]} 39. Rc1
{[%clk 0:00:09]} 39... a1=Q {[%clk 0:00:06.4]} 40. Rxa1 {[%clk 0:00:09.5]} 40...
Kxa1 {[%clk 0:00:07.3]} 41. c4 {[%clk 0:00:10]} 41... Bxc4 {[%clk 0:00:07.4]}
42. Kc3 {[%clk 0:00:10.9]} 42... Kb1 {[%clk 0:00:07.5]} 43. e5 {[%clk
0:00:11.8]} 43... fxe5 {[%clk 0:00:07.5]} 44. g4 {[%clk 0:00:12.2]} 44... hxg4
{[%clk 0:00:07.6]} 45. h5 {[%clk 0:00:12.7]} 45... gxh5 {[%clk 0:00:08.5]} 46.
Kb4 {[%clk 0:00:13.2]} 46... g3 {[%clk 0:00:08.9]} 47. Kc3 {[%clk 0:00:14.1]}
47... g2 {[%clk 0:00:09.4]} 48. Kb4 {[%clk 0:00:15]} 48... g1=Q {[%clk
0:00:09.6]} 49. Kc3 {[%clk 0:00:15.9]} 49... Qe1# {[%clk 0:00:09.6]} 0-1